[Event "Chinese Team-ch Men 2025"]
[Site "Zhang Jiakou Hebei"]
[Date "2025.04.26"]
[Round "2.10"]
[White "Chen, Hongsen"]
[Black "Peng, Hongchi"]
[Result "0-1"]
[Annotator "ChessBase"]
[ECO "E15"]
[WhiteElo "2402"]
[BlackElo "2419"]
[PlyCount "88"]
[EventDate "2025.04.26"]
[EventType "team-tourn"]
[EventCountry "CHN"]
[SourceTitle "playchess.com"]
[Source "ChessBase"]
[SourceQuality "1"]
[TimeControl "5400+30"]

1. d4 {[%emt 0:00:03]} Nf6 {[%emt 0:00:01]} 2. c4 {[%emt 0:00:09]} e6 {[%emt 0:00:06]} 3. Nf3 {[%emt 0:00:04]} b6 {[%emt 0:00:10]} 4. g3 {[%emt 0:00:04]} Ba6 {[%emt 0:00:08]} 5. b3 {[%emt 0:01:23]} d5 {[%emt 0:00:39]} 6. Bg2 {[%emt 0:13:13]} Be7 {[%emt 0:00:36]} 7. O-O {[%emt 0:01:18]} O-O {[%emt 0:00:12]} 8. Ne5 {[%emt 0:01:42]} c6 {[%emt 0:00:06]} 9. Bb2 {[%emt 0:03:55]} Nfd7 {[%emt 0:00:56]} 10. Nxd7 {[%emt 0:01:15]} Nxd7 {[%emt 0:00:23]} 11. Nd2 {[%emt 0:00:05]} Rc8 {[%emt 0:01:26]} 12. Re1 {[%emt 0:04:18]} Bb4 {[%emt 0:02:00]} 13. Rc1 {[%emt 0:00:09]} dxc4 {[%emt 0:03:51]} 14. bxc4 {[%emt 0:09:20]} Ne5 {[%emt 0:00:28]} 15. d5 {[%emt 0:00:09]} Ng6 {[%emt 0:05:35]} 16. e4 {[%emt 0:04:20]} Bb7 {[%emt 0:04:11]} 17. a3 {[%emt 0:03:00]} Ba5 {[%emt 0:01:19]} 18. Re3 {[%emt 0:00:28]} cxd5 {[%emt 0:07:17]} 19. exd5 {[%emt 0:02:49]} exd5 {[%emt 0:00:38]} 20. Rd3 {[%emt 0:00:37]} Re8 {[%emt 0:06:36]} 21. Bxd5 {[%emt 0:04:13]} Bxd5 {[%emt 0:09:03]} 22. Rxd5 {[%emt 0:00:06]} Bxd2 {[%emt 0:08:03]} 23. Qxd2 {[%emt 0:05:03]} Qe7 {[%emt 0:00:27]} 24. Qd4 {[%emt 0:10:34]} f6 {[%emt 0:06:28]} 25. Rd7 {[%emt 0:02:32]} Qe6 {[%emt 0:02:57]} 26. f4 {[%emt 0:12:59]} Re7 {[%emt 0:11:19]} 27. Rd6 {[%emt 0:10:51]} Qe2 {[%emt 0:02:08]} 28. Qd5+ {[%emt 0:01:06]} Kh8 {[%emt 0:00:19]} 29. Bd4 {[%emt 0:00:21]} Rce8 {[%emt 0:04:44]} 30. Rf1 {[%emt 0:00:55]} Qg4 {[%emt 0:07:06]} 31. Qf3 {[%emt 0:04:45]} Qh3 {[%emt 0:01:41]} 32. Qg2 {[%emt 0:00:25]} Qf5 {[%emt 0:01:44]} 33. Qd5 {[%emt 0:00:29]} Qg4 {[%emt 0:00:49]} 34. Qf3 {[%emt 0:00:15]} Qh3 {[%emt 0:00:58]} 35. Qg2 {[%emt 0:00:07]} Qc8 {[%emt 0:00:15]} 36. Qd5 {[%emt 0:01:04]} Re2 {[%emt 0:01:19]} 37. Rd7 {[%emt 0:02:59]} Ne7 {[%emt 0:01:04]} 38. Qb5 {[%emt 0:01:26]} a6 {[%emt 0:00:44]} 39. Qh5 {[%emt 0:00:56]} Qxd7 {[%emt 0:00:11]} 40. Bxf6 {[%emt 0:00:31]} Ng6 {[%emt 0:00:54]} 41. Be5 {[%emt 0:00:16]} Qd3 {[%emt 0:01:31]} 42. Rf3 {[%emt 0:00:31]} Qb1+ {[%emt 0:00:09]} 43. Rf1 {[%emt 0:00:03]} Qe4 {[%emt 0:00:02]} 44. Rf3 {[%emt 0:00:25]} Rd8 {[%emt 0:00:05]} 0-1

[Event "Chinese Team-ch Men 2025"]
[Site "Zhang Jiakou Hebei"]
[Date "2025.04.26"]
[Round "2.11"]
[White "Zhang, Di"]
[Black "Jin, Hongtao"]
[Result "1/2-1/2"]
[Annotator "ChessBase"]
[ECO "C78"]
[WhiteElo "2406"]
[BlackElo "2343"]
[PlyCount "85"]
[EventDate "2025.04.26"]
[EventType "team-tourn"]
[EventCountry "CHN"]
[SourceTitle "playchess.com"]
[Source "ChessBase"]
[SourceQuality "1"]
[TimeControl "5400+30"]

1. e4 {[%emt 0:00:03]} e5 {[%emt 0:00:03]} 2. Nf3 {[%emt 0:00:06]} Nc6 {[%emt 0:00:05]} 3. Bb5 {[%emt 0:00:03]} a6 {[%emt 0:00:06]} 4. Ba4 {[%emt 0:00:06]} b5 {[%emt 0:00:50]} 5. Bb3 {[%emt 0:00:07]} Bb7 {[%emt 0:00:05]} 6. O-O {[%emt 0:03:21]} Nf6 {[%emt 0:00:06]} 7. d4 {[%emt 0:15:09]} Nxd4 {[%emt 0:13:19]} 8. Nxd4 {[%emt 0:12:28]} exd4 {[%emt 0:00:07]} 9. e5 {[%emt 0:00:03]} Ne4 {[%emt 0:05:37]} 10. c3 {[%emt 0:00:08]} d3 {[%emt 0:10:30]} 11. Qxd3 {[%emt 0:01:47]} Nc5 {[%emt 0:00:07]} 12. Qg3 {[%emt 0:01:31]} Nxb3 {[%emt 0:00:05]} 13. axb3 {[%emt 0:00:03]} Qe7 {[%emt 0:01:46]} 14. Na3 {[%emt 0:27:43]} Qe6 {[%emt 0:04:29]} 15. c4 {[%emt 0:02:23]} Qg6 {[%emt 0:05:27]} 16. Bd2 {[%emt 0:04:43]} Qxg3 {[%emt 0:11:58]} 17. hxg3 {[%emt 0:00:08]} Bxa3 {[%emt 0:05:24]} 18. bxa3 {[%emt 0:02:19]} bxc4 {[%emt 0:02:29]} 19. bxc4 {[%emt 0:00:15]} Ke7 {[%emt 0:02:48]} 20. Ba5 {[%emt 0:03:27]} Rhc8 {[%emt 0:00:54]} 21. f3 {[%emt 0:06:49]} Bc6 {[%emt 0:03:38]} 22. g4 {[%emt 0:01:19]} Ke6 {[%emt 0:05:23]} 23. Rae1 {[%emt 0:05:34]} Ke7 {[%emt 0:02:14]} 24. Kf2 {[%emt 0:00:29]} Ba4 {[%emt 0:01:18]} 25. g5 {[%emt 0:05:33]} Rab8 {[%emt 0:02:20]} 26. Rh1 {[%emt 0:00:35]} Bc2 {[%emt 0:00:49]} 27. Re3 {[%emt 0:03:25]} c5 {[%emt 0:07:04]} 28. g4 {[%emt 0:01:55]} Rb1 {[%emt 0:01:58]} 29. Rxb1 {[%emt 0:00:55]} Bxb1 {[%emt 0:00:07]} 30. Rc3 {[%emt 0:01:22]} Ba2 {[%emt 0:03:59]} 31. f4 {[%emt 0:00:32]} d6 {[%emt 0:01:09]} 32. Rc2 {[%emt 0:00:12]} Bb3 {[%emt 0:00:21]} 33. Rc3 {[%emt 0:00:03]} Ba2 {[%emt 0:00:10]} 34. Rc2 {[%emt 0:01:40]} Bb3 {[%emt 0:00:04]} 35. Rb2 {[%emt 0:00:03]} Bxc4 {[%emt 0:00:41]} 36. Rb7+ {[%emt 0:00:12]} Ke6 {[%emt 0:00:19]} 37. Rb6 {[%emt 0:00:38]} Rd8 {[%emt 0:01:40]} 38. Ke3 {[%emt 0:00:43]} Kd5 {[%emt 0:00:59]} 39. Rb7 {[%emt 0:00:53]} Kc6 {[%emt 0:01:11]} 40. Rb6+ {[%emt 0:00:05]} Kd5 {[%emt 0:00:05]} 41. Rb7 {[%emt 0:00:04]} Kc6 {[%emt 0:00:04]} 42. Rb6+ {[%emt 0:01:37]} Kd5 {[%emt 0:00:05]} 43. Rb7 {[%emt 0:00:04]} 1/2-1/2

[Event "Chinese Team-ch Men 2025"]
[Site "Zhang Jiakou Hebei"]
[Date "2025.04.26"]
[Round "2.12"]
[White "Yang, ZiLong"]
[Black "Zhang, Zhi"]
[Result "0-1"]
[Annotator "ChessBase"]
[ECO "C42"]
[WhiteElo "2337"]
[BlackElo "2167"]
[PlyCount "124"]
[EventDate "2025.04.26"]
[EventType "team-tourn"]
[EventCountry "CHN"]
[SourceTitle "playchess.com"]
[Source "ChessBase"]
[SourceQuality "1"]
[TimeControl "5400+30"]

1. e4 {[%emt 0:00:06]} e5 {[%emt 0:00:00]} 2. Nf3 {[%emt 0:00:14]} Nf6 {[%emt 0:00:00]} 3. Nxe5 {[%emt 0:00:33]} d6 {[%emt 0:00:10]} 4. Nf3 {[%emt 0:00:03]} Nxe4 {[%emt 0:00:11]} 5. d4 {[%emt 0:00:12]} d5 {[%emt 0:00:11]} 6. Bd3 {[%emt 0:00:04]} Bd6 {[%emt 0:00:21]} 7. O-O {[%emt 0:00:43]} O-O {[%emt 0:00:09]} 8. c4 {[%emt 0:00:49]} c6 {[%emt 0:00:19]} 9. Nc3 {[%emt 0:00:50]} Nxc3 {[%emt 0:00:22]} 10. bxc3 {[%emt 0:00:04]} dxc4 {[%emt 0:00:11]} 11. Bxc4 {[%emt 0:00:16]} Bf5 {[%emt 0:00:14]} 12. Bg5 {[%emt 0:04:57]} Qa5 {[%emt 0:00:21]} 13. Nh4 {[%emt 0:00:08]} Be6 {[%emt 0:08:20]} 14. Bxe6 {[%emt 0:00:27]} Qxg5 {[%emt 0:00:12]} 15. Nf3 {[%emt 0:00:09]} Qa5 {[%emt 0:06:08]} 16. Qb3 {[%emt 0:00:31]} Qc7 {[%emt 0:08:56]} 17. Bc4 {[%emt 0:01:30]} Nd7 {[%emt 0:02:25]} 18. a4 {[%emt 0:04:31]} Nb6 {[%emt 0:03:27]} 19. Bd3 {[%emt 0:02:33]} Nd5 {[%emt 0:02:55]} 20. g3 {[%emt 0:05:57]} b6 {[%emt 0:06:37]} 21. Rfe1 {[%emt 0:02:18]} Rfe8 {[%emt 0:07:36]} 22. Rad1 {[%emt 0:12:26]} Rad8 {[%emt 0:01:10]} 23. Qc2 {[%emt 0:13:16]} g6 {[%emt 0:05:47]} 24. Ng5 {[%emt 0:06:20]} Bf8 {[%emt 0:01:57]} 25. h4 {[%emt 0:02:25]} Qc8 {[%emt 0:08:37]} 26. Nf3 {[%emt 0:10:58]} Bg7 {[%emt 0:02:21]} 27. Bc4 {[%emt 0:07:21]} Bf6 {[%emt 0:09:19]} 28. Ne5 {[%emt 0:03:41]} Bxe5 {[%emt 0:05:31]} 29. Rxe5 {[%emt 0:12:11]} Rxe5 {[%emt 0:10:52]} 30. dxe5 {[%emt 0:00:02]} Qe6 {[%emt 0:01:47]} 31. Qe4 {[%emt 0:00:32]} f6 {[%emt 0:02:51]} 32. Bb3 {[%emt 0:02:42]} Rd7 {[%emt 0:02:13]} 33. f4 {[%emt 0:02:24]} Kf8 {[%emt 0:00:39]} 34. Rd3 {[%emt 0:02:41]} fxe5 {[%emt 0:03:54]} 35. fxe5 {[%emt 0:00:05]} Qe7 {[%emt 0:00:31]} 36. Rf3+ {[%emt 0:03:13]} Ke8 {[%emt 0:00:49]} 37. Kh2 {[%emt 0:00:43]} Kd8 {[%emt 0:00:30]} 38. h5 {[%emt 0:00:36]} gxh5 {[%emt 0:00:16]} 39. Kg2 {[%emt 0:00:23]} Kc8 {[%emt 0:00:41]} 40. Rf5 {[%emt 0:00:17]} h4 {[%emt 0:00:20]} 41. gxh4 {[%emt 0:00:27]} Qc5 {[%emt 0:00:37]} 42. Rf3 {[%emt 0:00:56]} Rg7+ {[%emt 0:00:12]} 43. Kh3 {[%emt 0:00:21]} Qg1 {[%emt 0:00:14]} 44. Rf8+ {[%emt 0:00:44]} Kb7 {[%emt 0:01:11]} 45. Qf3 {[%emt 0:00:02]} Nc7 {[%emt 0:00:39]} 46. Rf6 {[%emt 0:00:11]} Qc5 {[%emt 0:00:02]} 47. Rf5 {[%emt 0:00:33]} Re7 {[%emt 0:00:20]} 48. Qg3 {[%emt 0:00:47]} Nd5 {[%emt 0:01:05]} 49. Bxd5 {[%emt 0:00:30]} Qxd5 {[%emt 0:00:03]} 50. Kh2 {[%emt 0:00:53]} Qd2+ {[%emt 0:00:13]} 51. Rf2 {[%emt 0:00:11]} Qe1 {[%emt 0:00:10]} 52. Rf5 {[%emt 0:00:12]} Qe2+ {[%emt 0:00:43]} 53. Kh3 {[%emt 0:00:30]} Qe4 {[%emt 0:00:03]} 54. Rh5 {[%emt 0:01:28]} Qh1+ {[%emt 0:00:52]} 55. Kg4 {[%emt 0:00:02]} h6 {[%emt 0:00:36]} 56. Qd3 {[%emt 0:00:49]} Qg2+ {[%emt 0:00:38]} 57. Kf4 {[%emt 0:00:19]} Rg7 {[%emt 0:00:49]} 58. Rxh6 {[%emt 0:00:42]} Qg4+ {[%emt 0:00:19]} 59. Ke3 {[%emt 0:00:03]} Qh3+ {[%emt 0:00:05]} 60. Kd4 {[%emt 0:00:31]} c5+ {[%emt 0:00:53]} 61. Ke4 {[%emt 0:00:08]} Rg4+ {[%emt 0:00:12]} 62. Kf5 {[%emt 0:00:04]} Rg3+ {[%emt 0:00:09]} 0-1

[Event "Chinese Team-ch Men 2025"]
[Site "Zhang Jiakou Hebei"]
[Date "2025.04.26"]
[Round "2.13"]
[White "Bai, Jinshi"]
[Black "Yu, Shaoteng"]
[Result "1-0"]
[Annotator "RC"]
[ECO "A43"]
[WhiteElo "2569"]
[BlackElo "2480"]
[PlyCount "63"]
[EventDate "2025.04.26"]
[EventType "team-tourn"]
[EventCountry "CHN"]
[SourceTitle "playchess.com"]
[Source "ChessBase"]
[SourceQuality "1"]
[TimeControl "5400+30"]

1. d4 {[%emt 0:00:08]} e6 {[%emt 0:00:10]} 2. Nf3 {[%emt 0:00:40]} c5 {[%emt 0:01:00]} 3. g3 {[%emt 0:01:59]} cxd4 {[%emt 0:00:46]} 4. Nxd4 {[%emt 0:00:10]} Qb6 {[%emt 0:00:28]} 5. Bg2 {[%emt 0:03:52]} Bc5 {[%emt 0:00:17]} 6. e3 {[%emt 0:01:34]} d5 {[%emt 0:00:18]} 7. O-O {[%emt 0:12:16]} Nf6 {[%emt 0:00:38]} 8. c4 {[%emt 0:02:39]} dxc4 {[%emt 0:01:58]} 9. Nd2 {[%emt 0:03:17]} Qa6 {[%emt 0:02:04]} 10. b3 {[%emt 0:11:56]} Bxd4 {[%emt 0:05:11]} 11. exd4 {[%emt 0:00:18]} cxb3 {[%emt 0:00:38]} 12. Nxb3 {[%emt 0:00:32]} Nbd7 {[%emt 0:00:58]} 13. d5 {[%emt 0:08:58]} e5 {[%emt 0:12:09]} 14. Re1 {[%emt 0:07:26]} O-O {[%emt 0:00:21]} 15. a4 {[%emt 0:01:56]} Re8 {[%emt 0:02:33]} 16. Bb2 {[%emt 0:06:00]} Qc4 {[%emt 0:17:51]} 17. a5 {[%emt 0:02:53]} Qg4 {[%emt 0:02:01]} 18. Qxg4 {[%emt 0:06:39]} Nxg4 {[%emt 0:01:17]} 19. f4 {[%emt 0:00:06]} e4 {[%emt 0:14:55]} 20. Bxe4 {[%emt 0:00:13]} Ngf6 {[%emt 0:00:14]} 21. Bf3 {[%emt 0:03:12]} Rxe1+ {[%emt 0:04:01]} 22. Rxe1 {[%emt 0:00:04]} h5 {[%emt 0:01:11]} 23. Re7 {[%emt 0:12:41]} Kf8 {[%emt 0:03:48]} 24. Ba3 {[%emt 0:00:12]} Kg8 {[%emt 0:00:07]} 25. Nd4 {[%emt 0:02:31]} Nf8 {[%emt 0:01:01]} 26. d6 {[%emt 0:01:50]} N8d7 {[%emt 0:03:10]} 27. Be2 {[%emt 0:02:49]} Nd5 {[%emt 0:00:42]} 28. Re8+ {[%emt 0:00:16]} Kh7 {[%emt 0:00:01]} 29. Bd3+ {[%emt 0:01:20]} g6 {[%emt 0:00:05]} 30. Nf3 {[%emt 0:01:16]} b6 {[%emt 0:02:04]} 31. Bb2 {[%emt 0:02:19]} f6 {[%emt 0:01:37]} 32. Bb5 {[%emt 0:01:23]} 1-0

[Event "Chinese Team-ch Men 2025"]
[Site "Zhang Jiakou Hebei"]
[Date "2025.04.26"]
[Round "2.14"]
[White "Jiang, Haochen"]
[Black "Kong, Xiangrui"]
[Result "1/2-1/2"]
[Annotator "ChessBase"]
[ECO "A37"]
[WhiteElo "2441"]
[BlackElo "2451"]
[PlyCount "76"]
[EventDate "2025.04.26"]
[EventType "team-tourn"]
[EventCountry "CHN"]
[SourceTitle "playchess.com"]
[Source "ChessBase"]
[SourceQuality "1"]
[TimeControl "5400+30"]

1. c4 {[%emt 0:00:03]} c5 {[%emt 0:00:49]} 2. Nf3 {[%emt 0:00:11]} Nc6 {[%emt 0:00:59]} 3. Nc3 {[%emt 0:00:30]} e5 {[%emt 0:00:46]} 4. g3 {[%emt 0:02:01]} g6 {[%emt 0:00:57]} 5. Bg2 {[%emt 0:03:24]} Bg7 {[%emt 0:00:04]} 6. d3 {[%emt 0:00:26]} Nge7 {[%emt 0:00:15]} 7. O-O {[%emt 0:00:55]} d6 {[%emt 0:00:03]} 8. a3 {[%emt 0:00:35]} O-O {[%emt 0:00:32]} 9. Rb1 {[%emt 0:00:29]} a5 {[%emt 0:00:09]} 10. Bd2 {[%emt 0:00:20]} h6 {[%emt 0:02:46]} 11. Ne1 {[%emt 0:02:57]} Be6 {[%emt 0:00:22]} 12. Nd5 {[%emt 0:00:39]} Rb8 {[%emt 0:06:42]} 13. Nxe7+ {[%emt 0:03:33]} Nxe7 {[%emt 0:01:14]} 14. b4 {[%emt 0:16:00]} axb4 {[%emt 0:08:25]} 15. axb4 {[%emt 0:02:09]} b5 {[%emt 0:00:11]} 16. cxb5 {[%emt 0:15:55]} Rxb5 {[%emt 0:00:39]} 17. Nc2 {[%emt 0:00:19]} cxb4 {[%emt 0:00:48]} 18. Nxb4 {[%emt 0:00:54]} Qd7 {[%emt 0:07:36]} 19. Nc6 {[%emt 0:03:29]} Rxb1 {[%emt 0:00:02]} 20. Nxe7+ {[%emt 0:00:10]} Qxe7 {[%emt 0:00:02]} 21. Qxb1 {[%emt 0:00:02]} Rc8 {[%emt 0:00:09]} 22. Rc1 {[%emt 0:00:59]} Qd7 {[%emt 0:00:05]} 23. Rxc8+ {[%emt 0:00:57]} Qxc8 {[%emt 0:00:03]} 24. Qc1 {[%emt 0:00:13]} Qxc1+ {[%emt 0:00:05]} 25. Bxc1 {[%emt 0:00:02]} d5 {[%emt 0:00:16]} 26. Bb2 {[%emt 0:00:57]} h5 {[%emt 0:00:52]} 27. f4 {[%emt 0:00:33]} exf4 {[%emt 0:01:08]} 28. Bxg7 {[%emt 0:00:03]} Kxg7 {[%emt 0:02:23]} 29. gxf4 {[%emt 0:00:04]} d4 {[%emt 0:01:15]} 30. Kf2 {[%emt 0:00:57]} f6 {[%emt 0:00:15]} 31. h4 {[%emt 0:03:55]} g5 {[%emt 0:00:11]} 32. fxg5 {[%emt 0:00:08]} fxg5 {[%emt 0:00:02]} 33. hxg5 {[%emt 0:00:02]} Kg6 {[%emt 0:00:06]} 34. Bf3 {[%emt 0:00:08]} Kxg5 {[%emt 0:00:06]} 35. Bxh5 {[%emt 0:00:06]} Kxh5 {[%emt 0:00:04]} 36. Kf3 {[%emt 0:00:13]} Bg4+ {[%emt 0:00:07]} 37. Ke4 {[%emt 0:00:05]} Bxe2 {[%emt 0:00:05]} 38. Kxd4 {[%emt 0:00:05]} Bxd3 {[%emt 0:00:37]} 1/2-1/2

[Event "Chinese Team-ch Men 2025"]
[Site "Zhang Jiakou Hebei"]
[Date "2025.04.26"]
[Round "2.15"]
[White "Xie, Kaifan"]
[Black "Chen, KaiLin"]
[Result "1-0"]
[Annotator "ChessBase"]
[ECO "D36"]
[WhiteElo "2435"]
[BlackElo "2329"]
[PlyCount "129"]
[EventDate "2025.04.26"]
[EventType "team-tourn"]
[EventCountry "CHN"]
[SourceTitle "playchess.com"]
[Source "ChessBase"]
[SourceQuality "1"]
[TimeControl "5400+30"]

1. d4 {[%emt 0:00:08]} Nf6 {[%emt 0:00:03]} 2. c4 {[%emt 0:00:40]} e6 {[%emt 0:00:02]} 3. Nf3 {[%emt 0:01:12]} d5 {[%emt 0:00:02]} 4. Nc3 {[%emt 0:00:49]} Nbd7 {[%emt 0:00:04]} 5. Qc2 {[%emt 0:01:42]} c6 {[%emt 0:01:08]} 6. cxd5 {[%emt 0:09:17]} exd5 {[%emt 0:00:51]} 7. Bg5 {[%emt 0:02:18]} Be7 {[%emt 0:00:16]} 8. e3 {[%emt 0:00:21]} Nh5 {[%emt 0:00:05]} 9. h4 {[%emt 0:06:41]} h6 {[%emt 0:06:19]} 10. Bxe7 {[%emt 0:02:45]} Qxe7 {[%emt 0:00:03]} 11. g4 {[%emt 0:03:28]} Nf4 {[%emt 0:17:07]} 12. O-O-O {[%emt 0:01:15]} Ne6 {[%emt 0:00:03]} 13. Bd3 {[%emt 0:04:21]} Nb6 {[%emt 0:03:11]} 14. Ne5 {[%emt 0:12:32]} Bd7 {[%emt 0:03:38]} 15. Na4 {[%emt 0:20:22]} Nxa4 {[%emt 0:06:08]} 16. Qxa4 {[%emt 0:00:08]} Nc5 {[%emt 0:01:13]} 17. Qa3 {[%emt 0:05:39]} Nxd3+ {[%emt 0:00:09]} 18. Qxd3 {[%emt 0:02:15]} O-O-O {[%emt 0:01:43]} 19. h5 {[%emt 0:00:57]} Rhe8 {[%emt 0:02:41]} 20. Rhg1 {[%emt 0:05:37]} f6 {[%emt 0:03:02]} 21. Ng6 {[%emt 0:01:09]} Qd6 {[%emt 0:00:48]} 22. Nf4 {[%emt 0:01:09]} Kb8 {[%emt 0:00:38]} 23. Kb1 {[%emt 0:00:24]} Bc8 {[%emt 0:02:05]} 24. Qd2 {[%emt 0:02:53]} Re4 {[%emt 0:07:38]} 25. Rc1 {[%emt 0:00:41]} Rde8 {[%emt 0:06:00]} 26. Rc3 {[%emt 0:01:31]} b6 {[%emt 0:03:24]} 27. Rgc1 {[%emt 0:02:08]} Bb7 {[%emt 0:00:15]} 28. f3 {[%emt 0:02:37]} R4e7 {[%emt 0:00:04]} 29. Ng6 {[%emt 0:00:08]} Re6 {[%emt 0:00:48]} 30. Nh4 {[%emt 0:01:51]} Rc8 {[%emt 0:05:28]} 31. Nf5 {[%emt 0:00:18]} Qd7 {[%emt 0:01:32]} 32. Qh2+ {[%emt 0:01:45]} Qc7 {[%emt 0:04:21]} 33. Qxc7+ {[%emt 0:00:24]} Rxc7 {[%emt 0:00:03]} 34. b4 {[%emt 0:00:18]} Ba6 {[%emt 0:04:08]} 35. R1c2 {[%emt 0:03:18]} Bb5 {[%emt 0:02:47]} 36. Kb2 {[%emt 0:00:54]} Rd7 {[%emt 0:02:43]} 37. Kb3 {[%emt 0:02:13]} Bc4+ {[%emt 0:00:30]} 38. Rxc4 {[%emt 0:00:49]} dxc4+ {[%emt 0:00:03]} 39. Rxc4 {[%emt 0:00:07]} Kb7 {[%emt 0:01:33]} 40. a4 {[%emt 0:01:35]} a6 {[%emt 0:00:45]} 41. Rc2 {[%emt 0:00:38]} Re8 {[%emt 0:04:53]} 42. e4 {[%emt 0:00:23]} b5 {[%emt 0:02:46]} 43. a5 {[%emt 0:01:22]} Rg8 {[%emt 0:00:43]} 44. Kc3 {[%emt 0:00:22]} g6 {[%emt 0:01:17]} 45. hxg6 {[%emt 0:00:25]} Rxg6 {[%emt 0:00:02]} 46. Rh2 {[%emt 0:00:09]} Rh7 {[%emt 0:00:56]} 47. Kd3 {[%emt 0:00:27]} Kc7 {[%emt 0:02:37]} 48. Ke3 {[%emt 0:00:17]} Kd7 {[%emt 0:00:40]} 49. Nh4 {[%emt 0:00:49]} Rg8 {[%emt 0:00:22]} 50. Nf5 {[%emt 0:00:13]} Ke6 {[%emt 0:00:59]} 51. Kf4 {[%emt 0:00:25]} Rgh8 {[%emt 0:01:58]} 52. Rc2 {[%emt 0:00:40]} Kd7 {[%emt 0:00:13]} 53. Ng3 {[%emt 0:00:39]} Rg8 {[%emt 0:00:56]} 54. Kf5 {[%emt 0:00:49]} Rf7 {[%emt 0:00:37]} 55. f4 {[%emt 0:01:04]} Kd6 {[%emt 0:01:33]} 56. Nh5 {[%emt 0:00:25]} Re8 {[%emt 0:00:27]} 57. Kg6 {[%emt 0:00:39]} Rff8 {[%emt 0:00:47]} 58. e5+ {[%emt 0:00:27]} fxe5 {[%emt 0:00:04]} 59. dxe5+ {[%emt 0:00:02]} Kc7 {[%emt 0:00:20]} 60. Nf6 {[%emt 0:00:19]} Re6 {[%emt 0:01:03]} 61. Kxh6 {[%emt 0:00:17]} Rd8 {[%emt 0:01:03]} 62. g5 {[%emt 0:00:44]} Rd1 {[%emt 0:01:37]} 63. g6 {[%emt 0:00:30]} Re7 {[%emt 0:00:03]} 64. Rg2 {[%emt 0:00:37]} Rh1+ {[%emt 0:00:10]} 65. Nh5 {[%emt 0:00:34]} 1-0

[Event "Chinese Team-ch Men 2025"]
[Site "Zhang Jiakou Hebei"]
[Date "2025.04.26"]
[Round "2.16"]
[White "Yu, Kaifeng"]
[Black "Jin, Yueheng"]
[Result "1/2-1/2"]
[Annotator "ChessBase"]
[ECO "C54"]
[WhiteElo "2312"]
[BlackElo "2383"]
[PlyCount "65"]
[EventDate "2025.04.26"]
[EventType "team-tourn"]
[EventCountry "CHN"]
[SourceTitle "playchess.com"]
[Source "ChessBase"]
[SourceQuality "1"]
[TimeControl "5400+30"]

1. e4 {[%emt 0:00:02]} e5 {[%emt 0:00:07]} 2. Nf3 {[%emt 0:00:02]} Nc6 {[%emt 0:00:09]} 3. Bc4 {[%emt 0:00:04]} Bc5 {[%emt 0:00:08]} 4. c3 {[%emt 0:00:03]} Nf6 {[%emt 0:00:07]} 5. d3 {[%emt 0:00:02]} a6 {[%emt 0:00:22]} 6. O-O {[%emt 0:00:09]} d6 {[%emt 0:00:17]} 7. a4 {[%emt 0:00:44]} Ba7 {[%emt 0:00:16]} 8. Re1 {[%emt 0:09:27]} h6 {[%emt 0:01:09]} 9. h3 {[%emt 0:02:19]} O-O {[%emt 0:00:25]} 10. Nbd2 {[%emt 0:00:05]} Re8 {[%emt 0:02:33]} 11. Nf1 {[%emt 0:13:08]} Be6 {[%emt 0:00:38]} 12. Bxe6 {[%emt 0:00:07]} Rxe6 {[%emt 0:00:21]} 13. Be3 {[%emt 0:03:00]} Bxe3 {[%emt 0:01:17]} 14. Nxe3 {[%emt 0:00:10]} d5 {[%emt 0:07:58]} 15. Qc2 {[%emt 0:01:33]} Qd7 {[%emt 0:02:40]} 16. Rad1 {[%emt 0:01:11]} Rd8 {[%emt 0:12:03]} 17. Qb3 {[%emt 0:08:12]} b6 {[%emt 0:08:09]} 18. exd5 {[%emt 0:11:22]} Nxd5 {[%emt 0:00:05]} 19. Qc4 {[%emt 0:00:02]} a5 {[%emt 0:08:37]} 20. Nxd5 {[%emt 0:29:52]} Qxd5 {[%emt 0:00:04]} 21. Qe4 {[%emt 0:00:37]} Qxe4 {[%emt 0:13:42]} 22. dxe4 {[%emt 0:03:19]} Red6 {[%emt 0:00:04]} 23. Rxd6 {[%emt 0:02:00]} Rxd6 {[%emt 0:00:04]} 24. Kf1 {[%emt 0:00:06]} f6 {[%emt 0:00:10]} 25. Ke2 {[%emt 0:00:45]} Kf7 {[%emt 0:00:07]} 26. Rd1 {[%emt 0:01:30]} Rxd1 {[%emt 0:00:18]} 27. Kxd1 {[%emt 0:00:03]} Nb8 {[%emt 0:00:18]} 28. Ne1 {[%emt 0:01:05]} Nd7 {[%emt 0:01:14]} 29. Nd3 {[%emt 0:00:05]} Ke6 {[%emt 0:00:06]} 30. b4 {[%emt 0:02:45]} f5 {[%emt 0:15:38]} 31. exf5+ {[%emt 0:01:37]} Kxf5 {[%emt 0:00:04]} 32. Kd2 {[%emt 0:00:24]} Ke4 {[%emt 0:00:24]} 33. Kc2 {[%emt 0:02:32]} 1/2-1/2

[Event "Chinese Team-ch Men 2025"]
[Site "Zhang Jiakou Hebei"]
[Date "2025.04.26"]
[Round "2.17"]
[White "Xu, Minghui"]
[Black "Li, Di"]
[Result "1/2-1/2"]
[Annotator "RC"]
[ECO "C48"]
[WhiteElo "2459"]
[BlackElo "2571"]
[PlyCount "51"]
[EventDate "2025.04.26"]
[EventType "team-tourn"]
[EventCountry "CHN"]
[SourceTitle "playchess.com"]
[Source "ChessBase"]
[SourceQuality "1"]
[TimeControl "5400+30"]

1. e4 {[%emt 0:00:10]} e5 {[%emt 0:00:03]} 2. Nf3 {[%emt 0:00:09]} Nc6 {[%emt 0:00:04]} 3. Nc3 {[%emt 0:00:10]} Nf6 {[%emt 0:00:06]} 4. Bb5 {[%emt 0:00:40]} Nd4 {[%emt 0:00:07]} 5. Bc4 {[%emt 0:00:11]} Bc5 {[%emt 0:00:44]} 6. Nxe5 {[%emt 0:00:50]} Qe7 {[%emt 0:00:06]} 7. Nf3 {[%emt 0:00:05]} d5 {[%emt 0:00:15]} 8. Bxd5 {[%emt 0:00:15]} Bg4 {[%emt 0:00:05]} 9. d3 {[%emt 0:00:22]} O-O-O {[%emt 0:00:49]} 10. Be3 {[%emt 0:00:38]} Nxd5 {[%emt 0:00:18]} 11. Nxd5 {[%emt 0:00:15]} Rxd5 {[%emt 0:00:13]} 12. exd5 {[%emt 0:00:06]} Re8 {[%emt 0:00:09]} 13. c3 {[%emt 0:02:03]} Nxf3+ {[%emt 0:00:57]} 14. gxf3 {[%emt 0:00:08]} Qh4 {[%emt 0:00:02]} 15. Kd2 {[%emt 0:00:11]} Rxe3 {[%emt 0:03:36]} 16. fxe3 {[%emt 0:02:14]} Qf2+ {[%emt 0:00:05]} 17. Kc1 {[%emt 0:00:09]} Bxf3 {[%emt 0:00:22]} 18. Qe1 {[%emt 0:00:08]} Bxe3+ {[%emt 0:00:14]} 19. Kb1 {[%emt 0:00:06]} Bxh1 {[%emt 0:00:26]} 20. Qxh1 {[%emt 0:00:13]} Qe2 {[%emt 0:00:09]} 21. a4 {[%emt 0:00:50]} Qxd3+ {[%emt 0:03:58]} 22. Ka2 {[%emt 0:01:22]} Qc4+ {[%emt 0:00:08]} 23. Kb1 {[%emt 0:00:12]} Qd3+ {[%emt 0:00:03]} 24. Ka2 {[%emt 0:00:09]} Qc4+ {[%emt 0:00:05]} 25. Kb1 {[%emt 0:00:24]} Qd3+ {[%emt 0:00:02]} 26. Ka2 {[%emt 0:00:10]} 1/2-1/2